Cogmind - Beta 12 @@@ ROGUE MODE // 2023.10.03 @ 16:15:31 Player: Figgis Result: Destroyed by D-53 Grenadier with Mini Grenade Launcher Performance ------------- Evolutions (0) 0 Regions Visited (4) 800 Robots Destroyed (9) 45 Value Destroyed (260) 260 Prototype IDs (1) 20 Alien Tech Used (0) 0 Bonus (0) 0 TOTAL SCORE: 1125 Bonus ------- None Cogmind --------- Core Integrity 0/250 Matter 258/300 Energy 92/160 System Corruption 2% Temperature Cool (0) Movement Walking (190) Ox1 Location -9/Mines Parts ------- > --- POWER (1) -------- Light Nuclear Core > --- PROPULSION (2) --- Aluminum Leg Aluminum Leg > --- UTILITY (2) ------ Large Storage Unit Makeshift Terrain Scanner > --- WEAPON (2) ------- Latent Energy Streamer (fused) Light Assault Rifle > --- INVENTORY (15) --- Light Ion Engine Small Storage Unit Makeshift Terrain Scanner Makeshift Transmission Jammer EM Pulse Gun Light Assault Rifle Peak State ------------ > --- POWER ------------ Light Nuclear Core > --- PROPULSION ------- Aluminum Leg Aluminum Leg > --- UTILITY ---------- Small Storage Unit Makeshift Terrain Scanner > --- WEAPON ----------- Particle Gun Latent Energy Streamer > --- INVENTORY -------- Light Ion Engine Aluminum Leg Large Storage Unit Makeshift Terrain Scanner Makeshift Transmission Jammer EM Pulse Gun Light Assault Rifle Light Assault Rifle [Rating: 26] Favorites ----------- Power Ion Engine Engine Ion Engine Power Core Light Nuclear Core Propulsion Aluminum Leg Leg Aluminum Leg Utility Small Storage Unit Device Makeshift Terrain Scanner Storage Small Storage Unit Weapon Light Assault Rifle Energy Gun Particle Gun Energy Cannon Latent Energy Streamer Ballistic Gun Light Assault Rifle Build | -11 -10 -10 -10 -9 ------- Run | Jun Mat Min Exi Min Slots Evolved . | . . . . . Power . | . . . . . Propulsion . | . . . . . Utility . | . . . . . Weapon . | . . . . . Parts Attached 18 | 7 2 . 3 6 Power 5 | 2 . . . 3 Engine 3 | 2 . . . 1 Core 2 | . . . . 2 Reactor . | . . . . . Propulsion 4 | 2 1 . . 1 Treads . | . . . . . Leg 4 | 2 1 . . 1 Wheel . | . . . . . Hover . | . . . . . Flight . | . . . . . Utility 4 | 1 . . 2 1 Device 2 | . . . 2 . Storage 2 | 1 . . . 1 Processor . | . . . . . Hackware . | . . . . . Protection . | . . . . . Artifact . | . . . . . Weapon 5 | 2 1 . 1 1 Energy Gun 1 | . 1 . . . Energy Cannon 1 | . . . 1 . Ballistic Gun 3 | 2 . . . 1 Ballistic Cannon . | . . . . . Launcher . | . . . . . Special Weapon . | . . . . . Impact Weapon . | . . . . . Slashing Weapon . | . . . . . Piercing Weapon . | . . . . . Special Melee Weapon . | . . . . . Unidentified Prototypes 1 | . . . 1 . Parts Lost 4 | . 1 . . 3 Power 1 | . . . . 1 Propulsion 2 | . 1 . . 1 Utility . | . . . . . Weapon 1 | . . . . 1 Highest Loss Streak 3 | . 1 . . 3 To Critical Strikes . | . . . . . Average Slot Usage (%) 91 | . 84 85 95 98 Engine 12 | . 14 14 14 2 Core 1 | . . . . 11 Leg 27 | . 27 28 28 28 Device 6 | . . . 9 14 Storage 14 | . 14 14 14 14 Energy Gun 12 | . 5 14 14 12 Energy Cannon 3 | . . . 3 14 Ballistic Gun 12 | . 22 14 10 . Naked Turns . | . . . . . Heaviest Build 39 | 12 14 14 24 39 Greatest Support 20 | 20 20 20 20 20 Greatest Overweight (x) 2 | 2 1 . 1 1 Average Overweight (x) . | 1 . . . 1 Largest Inventory Capacity 15 | 8 8 8 8 15 Average Capacity 8 | 7 8 8 8 14 Most Carried 9 | 5 6 5 8 9 Average Carried 5 | 3 4 5 6 8 Final Capacity 15 | 8 8 8 8 15 Final Carried 8 | 2 5 5 8 6 Class Distribution -------------------- 100% | Mutant Dominant Class ---------------- Mutant | -10/Materials Mutant | -10/Mines Mutant | -10/Exiles Mutant | -9/Mines Resources | -11 -10 -10 -10 -9 ----------- Run | Jun Mat Min Exi Min Matter Collected 360 | 214 84 20 . 42 Remotely . | . . . . . Salvage Created 311 | . 87 86 . 138 Parts 18 | . 3 7 . 8 Haulers Intercepted . | . . . . . Recyclers Shooed . | . . . . . Parts Field Recycled . | . . . . . Retrieved Matter . | . . . . . Parts Self-Destructed . | . . . . . Prevented . | . . . . . Kills | -11 -10 -10 -10 -9 ------- Run | Jun Mat Min Exi Min Combat Hostiles Destroyed 9 | . 2 4 . 3 Guns 6 | . 2 4 . . AOE 3 | . . . . 3 Classes Destroyed 2 | . 1 1 . . Swarmer 3 | . . 3 . . Grunt 6 | . 2 1 . 3 Best Kill Streak 3 | . 2 3 . 3 Combat Bots Only 3 | . 2 3 . 3 Max Kills in Single Turn 3 | . 1 2 . 3 Gunslinging 1 | . . 1 . . Exploded 3 | . . . . 3 Melee . | . . . . . Uniques/NPCs Destroyed . | . . . . . Combat | -11 -10 -10 -10 -9 -------- Run | Jun Mat Min Exi Min Damage Taken 842 | . 342 102 . 398 Core 259 | . 164 19 . 76 Absorbed by Shields . | . . . . . Core Remaining (%) 100 | 100 . . . . Volleys Fired 20 | . 9 10 . 1 Largest 2 | . 2 2 . 2 Hottest 125 | . 40 85 . 125 Shots Fired 40 | . 18 20 . 2 Gun 39 | . 18 20 . 1 Cannon 1 | . . . . 1 Launcher . | . . . . . Special . | . . . . . Kinetic 28 | . 18 10 . . Thermal 11 | . . 10 . 1 Explosive . | . . . . . Electromagnetic 1 | . . . . 1 Robot Hit Streak 9 | . 8 9 . 5 Robot Miss Streak 3 | . 1 3 . . Penetration Max . | . . . . . Secondary Targets 1 | . . 1 . . Max Gunslinging Chain 1 | . . 1 . . Shots Hit Robots 30 | . 16 12 . 2 Core Hits 18 | . 7 6 . 5 Critical Kills . | . . . . . Critical Parts Destroyed . | . . . . . Critical Strikes . | . . . . . Melee Attacks . | . . . . . Impact . | . . . . . Slashing . | . . . . . Piercing . | . . . . . Sneak Attacks . | . . . . . Combat Hostiles . | . . . . . Follow-up Attacks . | . . . . . Damage Inflicted 447 | . 124 126 . 197 Guns 263 | . 124 126 . 13 Cannons 6 | . . . . 6 Explosions 178 | . . . . 178 Melee . | . . . . . Ramming . | . . . . . Kinetic 178 | . 124 54 . . Thermal 85 | . . 72 . 13 Explosive . | . . . . . Electromagnetic 184 | . . . . 184 Impact . | . . . . . Slashing . | . . . . . Piercing . | . . . . . Highest Corruption 2 | . . . . 2 Average Corruption 2 | . . . . 2 Corruption Purged . | . . . . . Corruption Blocked . | . . . . . Effects 4 | . . . . 4 Message Errors 2 | . . . . 2 Matter Fused 1 | . . . . 1 Parts Fused 1 | . . . . 1 Overload Shots . | . . . . . Overflow Damage . | . . . . . Projectiles . | . . . . . Explosions . | . . . . . Melee . | . . . . . Knockbacks . | . . . . . Impact . | . . . . . Kinetic . | . . . . . Secondary . | . . . . . Self-Inflicted Damage . | . . . . . Shots . | . . . . . Rammed . | . . . . . Targets Rammed . | . . . . . Kicked . | . . . . . Crushed . | . . . . . Highest Temperature 184 | . 12 184 . 63 Average Temperature 63 | . 8 88 . 29 Received Heat Transfer 104 | . 60 24 . 20 Siege Activations . | . . . . . Robots Corrupted . | . . . . . Combat Hostiles . | . . . . . Parts Fried 1 | . . . . 1 Impact Corruptions . | . . . . . Robots Melted . | . . . . . Combat Hostiles . | . . . . . Parts Melted . | . . . . . Heat Transferred 222 | . . 185 . 37 Parts Sabotaged . | . . . . . Parts Stolen . | . . . . . Parts Stripped . | . . . . . Power Chain Reactions . | . . . . . Missiles Intercepted . | . . . . . Latent Energy Used 92 | . . . . 92 LE Corruption 2 | . . . . 2 Alert | -11 -10 -10 -10 -9 ------- Run | Jun Mat Min Exi Min Peak Influence 123 | . 57 123 . 72 Initial 18 | . . 18 . . Average 40 | . 26 46 . 66 Maximum Alert Level . | . . . . . Low Security (%) 100 | 100 100 100 . 100 Level 1 . | . . . . . Level 2 . | . . . . . Level 3 . | . . . . . Level 4 . | . . . . . Level 5 . | . . . . . High Security . | . . . . . Max Security . | . . . . . Squads Dispatched . | . . . . . Investigation . | . . . . . Extermination . | . . . . . Reinforcement . | . . . . . Assault . | . . . . . Garrison . | . . . . . Intercept . | . . . . . Searches Triggered . | . . . . . Construction Impeded . | . . . . . Haulers Reinforced . | . . . . . Active Scanning Responses . | . . . . . Cargo Convoy Interrupts . | . . . . . Stealth | -11 -10 -10 -10 -9 --------- Run | Jun Mat Min Exi Min Distress Signals . | . . . . . Communications Jammed . | . . . . . Distress Signals . | . . . . . Times Spotted 16 | . 2 4 . 10 Peak Tracking Total 7 | . 2 3 . 7 Tactical Retreats . | . . . . . Traps | -11 -10 -10 -10 -9 ------- Run | Jun Mat Min Exi Min Traps Triggered 1 | . 1 . . . Indirectly . | . . . . . Trap Hack Attempts . | . . . . . Triggered . | . . . . . Disarmed . | . . . . . Reprogrammed . | . . . . . Reused . | . . . . . Traps Extracted . | . . . . . Installed . | . . . . . Triggered . | . . . . . Machines | -11 -10 -10 -10 -9 ---------- Run | Jun Mat Min Exi Min Machines Disabled . | . . . . . Max in Single Turn . | . . . . . Machines Repaired . | . . . . . Machines Sabotaged . | . . . . . Overloaded Fab Kills . | . . . . . Hacking | -11 -10 -10 -10 -9 --------- Run | Jun Mat Min Exi Min Machines Accessed 6 | . 2 . 4 . Terminals 2 | . 2 . . . Fabricators . | . . . . . Repair Stations . | . . . . . Recycling Units . | . . . . . Scanalyzers . | . . . . . Garrison Access . | . . . . . Total Hacks 52 | . 3 . 49 . Successful 50 | . 1 . 49 . Failed 2 | . 2 . . . Catastrophic . | . . . . . Database Lockouts . | . . . . . Manual 5 | . . . 5 . Terminals 3 | . 3 . . . Fabricators . | . . . . . Repair Stations . | . . . . . Recycling Units . | . . . . . Scanalyzers . | . . . . . Garrison Access . | . . . . . Terminal Hacks 50 | . 1 . 49 . Record 49 | . . . 49 . Branch Access Points 1 | . 1 . . . Fabricator Hacks . | . . . . . Repair Station Hacks . | . . . . . Recycling Unit Hacks . | . . . . . Scanalyzer . | . . . . . Garrison Access Hacks . | . . . . . Unauthorized Hacks . | . . . . . Terminals . | . . . . . Fabricators . | . . . . . Repair Stations . | . . . . . Recycling Units . | . . . . . Scanalyzers . | . . . . . Garrison Access . | . . . . . Data Cores Recovered . | . . . . . Used . | . . . . . Hacking Detections 1 | . 1 . . . Full Trace Events . | . . . . . Feedback Events . | . . . . . Feedback Blocked . | . . . . . Robot Schematics Acquired . | . . . . . Robots Built . | . . . . . Authchips . | . . . . . Time . | . . . . . Total Robot Build Rating . | . . . . . Part Schematics Acquired . | . . . . . Parts Built . | . . . . . Authchips . | . . . . . Time . | . . . . . Total Part Build Rating . | . . . . . Parts Repaired . | . . . . . Time . | . . . . . Parts Recycled . | . . . . . Recycled Matter . | . . . . . Retrieved Matter . | . . . . . Retrieved Components . | . . . . . Parts Scanalyzed . | . . . . . Part Schematics Acquired . | . . . . . Parts Damaged . | . . . . . Bothacking | -11 -10 -10 -10 -9 ------------ Run | Jun Mat Min Exi Min Used RIF Installer . | . . . . . Robots Hacked . | . . . . . Non-combat . | . . . . . Combat . | . . . . . Robot Hacks Applied . | . . . . . Relay Couplers Released . | . . . . . Fabnet Peak Effective % . | . . . . . Robots Rewired . | . . . . . Allies Hacked . | . . . . . Hacks Repelled . | . . . . . Allies | -11 -10 -10 -10 -9 -------- Run | Jun Mat Min Exi Min Total Allies 3 | . . . . 3 Largest Group 3 | . . . . 3 Highest-Rated Group 40 | . . . . 40 Highest-Rated Ally 16 | . . . . 16 Total Orders . | . . . . . Ally Attacks 8 | . . . . 8 Total Damage 92 | . . . . 92 Kills 1 | . . . . 1 Allies Corrupted . | . . . . . Allies Melted . | . . . . . Intel | -11 -10 -10 -10 -9 ------- Run | Jun Mat Min Exi Min Robot Analysis Total . | . . . . . Derelict Logs Recovered 1 | . . 1 . . Drone Launches . | . . . . . Drone Recoveries . | . . . . . Exploration | -11 -10 -10 -10 -9 ------------- Run | Jun Mat Min Exi Min Turns Passed 1773 | 73 303 375 846 176 Spaces Moved 1238 | 40 220 282 609 87 Core 37 | 37 . . . . Treads . | . . . . . Legs 1201 | 3 220 282 609 87 Wheels . | . . . . . Hover . | . . . . . Flight . | . . . . . Fastest Speed 50 | 50 120 120 120 190 Average Speed 131 | 135 120 120 133 190 Slowest Speed 190 | 150 190 120 190 190 Overloaded Moves . | . . . . . Propulsion Burnouts . | . . . . . Robots Hopped . | . . . . . Cave-ins Triggered . | . . . . . Exploration Rate (%) 41 | 3 30 54 92 26 Regions Visited 4 Branch Regions 3 Pre-discovered Areas 1 | . . . 1 . Known Exits Taken 1 | . 1 . . . Unknown Exits Taken 3 | 1 . 1 1 . Scrap Searched . | . . . . . Spaces Dug . | . . . . . Terrain Destroyed 2 | . . . . 2 Melee . | . . . . . Projectile . | . . . . . AOE 2 | . . . . 2 Terrain Rammed . | . . . . . Walls Destroyed . | . . . . . Machines Disabled . | . . . . . Actions | -11 -10 -10 -10 -9 --------- Run | Jun Mat Min Exi Min Total 1340 | 58 242 300 644 96 Wait 48 | 4 8 9 27 . Move 1234 | 39 219 281 608 87 Hop . | . . . . . Pick Up 17 | 8 4 . 4 1 Fast Attach . | . . . . . Attach 11 | 6 1 . 1 3 Detach . | . . . . . Swap 7 | 1 1 . 2 3 Drop 1 | . . . . 1 Fire 20 | . 9 10 . 1 Melee . | . . . . . Ram . | . . . . . Kick . | . . . . . Crush . | . . . . . Escape Stasis . | . . . . . Rewire 2 | . . . 2 . Trap . | . . . . . Miscellaneous . | . . . . . Route ------- -11/Junkyard -10/Materials (discovered 2 exits: *Min x2) -10/Mines (discovered 3 exits: [*Mat x2] / *Exi) -10/Exiles (discovered 2 exits: [*Min x2]) -9/Mines History --------- Turn | Location | Event 20 | -11/Junkyard | Discovered new exit (range 16) 74 | -11/Junkyard | Entered Materials 126 | -10/Materials | Identified exit to Mines 300 | -10/Materials | Build established: Mutant 339 | -10/Materials | Core integrity fell below 50% 377 | -10/Materials | Entered Mines 384 | -10/Mines | Met a Derelict bent on vengeance 395 | -10/Mines | Discovered new exit (range 16) 423 | -10/Mines | Learned Materials terminal intel 663 | -10/Mines | Discovered new exit (range 12) 744 | -10/Mines | Deemed a non-threat by the Exiles lab entrance 744 | -10/Mines | Discovered new exit (range 5) 752 | -10/Mines | Entered Exiles 752 | -10/Exiles | Found Exiles lab destroyed 770 | -10/Exiles | Discovered new exit (range 15) 866 | -10/Exiles | Learned location of Zion (-7) 926 | -10/Exiles | Discovered new exit (range 12) 1371 | -10/Exiles | Opened EX-Vault 1376 | -10/Exiles | Found Prototype Energy Cannon 1377 | -10/Exiles | Identified Latent Energy Streamer 1598 | -10/Exiles | Entered Mines 1678 | -9/Mines | Assisted by bots powering up and referring to "LRC-V3" 1734 | -9/Mines | Assembled infested the area 1763 | -9/Mines | Core integrity fell below 20% 1774 | -9/Mines | Destroyed by D-53 Grenadier with Mini Grenade Launcher Last Messages --------------- 01754_ as-24108 suffers critical hit (Burn). 01756_ C-30 ARC bursts open, deploying its payload. 01756_ D-53 Grenadier unfolds itself. 01757_ as-24108 destroyed. 01758_ as-33731 destroyed. 01758_ Mercenary 2a destroyed. 01758_ Trooper 2b destroyed. 01758_ as-24186 destroyed. 01759_ Particle Gun destroyed. 01760_ as-22074 destroyed. 01762_ System corrupted: Matter fused (-9). 01762_ Trooper 2a destroyed. 01764_ D-53 Grenadier suffers critical hit (Destroy). 01764_ as-51277 destroyed. 01764_ as-19650 destroyed. 01765_ The unstable cave ceiling collapses. 01768_ Ion Engine destroyed. 01768_ Aluminum Leg destroyed. 01771_ The unstable cave ceiling collapses. 01771_ as-92982 destroyed. Map ----- +----------------------------------------------------+ | ??????????????#############???????##?#???????? | | ??????????????# ####??????????????? | | ???????????????? ==""##?????????????? | | ?????????????????#?????# % %!=##??#?????????? | | ???????????????????????## *! * ##??#????????? | | ?????????????????#???# ## #####???????? | | ?????????????????????# ##?#?#??# | | ?????????????????????#### #??##??? | | ??????????????????#?????# #??????? | | ????????????????????????# #?????#? | | ??????????????????? ????## #####???? | | ?????????????????????#???####### #???? | | ??????????????????????##???????## #???? | | ??????????????????????????????### ### #???? | | ?????????????#?????? ????????#?# #?# #???# | | ???????????????????? ? ?????#?# #### #???? | | ?????????????????????? ?? ##??#####??# #???? | | ??????????????????#?????? ##????????# #???? | | ????????????#?????#?????? ##?####### ##??? | | ????????????????????????? #?# ##?? | | ????????????????????????? ### ##? | | ??????????????????????### ## #? | | ?????????#??????????### # #### #? | | ?????????#?????????## #?### #? | | ???????????????????# ##???## #? | | ??????????????????## @ #??????# ##? | | ??????????????????# ##????#?## #?? | | ???????????????? ?## #??#????## ##?? | | ?????????# ## #???#????# #####? | | ?????????????# ##?????#??# #????? | | ?????????????# % a ##?????????# #????? | | ?????????????# d ##????????#?# #????? | | ???????? ????# # ##??#???????# #?#??? | | ??????????? ?## = ##??#??###### #???#? | | ???????????? d ##????# #????? | | ?????????? ## [ ###### ######????? | | ????????? ??# #?????????? | | ????????? ##???## #?????????? | | ????????????????### # ######???????#?? | | ?????????#?#??????########## " #????#????????? | | ????#??????????????????????##%" ??????#????? | | ???????????????????????????? " ?#?????????? | | ???????????????????????????? $ ??????????? | | ????????????????????? ?????### ####?????????? | | ?????????????????????? ???????###?#??????????? | | ???????????????????????#?????????#???????????? | | ????????????????????? ??????#??????????#???#?? | | ?????????????????????????????????????????????? | | ?????????????????????????????????????????????? | | ????????????????????????????????#????????????? | +----------------------------------------------------+ Best States ------------- Heat Dissipation 25 Energy Generation 14 Energy Capacity 250 Matter Stores 300 Matter Capacity 300 Sight Range 16 Terrain Scan Range 18 Terrain Scan Density 10 Jamming Range 14 Evasion (%) 55 Item Schematics ----------------- None Robot Schematics ------------------ None Fabricated ------------ Nothing Alien Tech Used ----------------- None Achievements -------------- None Challenges ------------ None Game ------ Seed TerrabombHybridNanosword Manual? 0 Play Time 00:12:45 Cumulative 17.6 hours Start 2023.10.03 @ 16:02:47 End 2023.10.03 @ 16:15:31 Sessions 1 Manual Loads 0 Difficulty Rogue Special Mode None Game No. 37 Rogue 34 Adventurer 3 Explorer 0 Win Type - Total 0 Types 0/0/0/0/0/0/0/0/0 Lore% 18 Gallery% 27 Achievement% 22 Wizard Run 0 Options --------- ASCII 0 Keyboard 0 Movement Mouse Keybinds 0 Fullscreen 2 Font 18/SmallcapsGlow Map View 76x50 Tactical HUD 1 Map Filters NONE Filters NONE Steam 1 RUN: 36234ee4-a3ce-4bea-bb96-70ee70e93f35